[Event "SPICE Cup 2014"]
[Site "St. Louis"]
[Date "2014.10.21"]
[Round "1"]
[White "Bora, Safal"]
[Black "Robson, Ray"]
[Result "0-1"]
[ECO "A06"]
[WhiteElo "2328"]
[BlackElo "2628"]
[PlyCount "80"]
[EventDate "2014.??.??"]
[EventCountry "USA"]
[TimeControl "5400+30"]
[WhiteClock "0:04:41"]
[BlackClock "0:13:17"]

1. Nf3 {[%emt 0:00:00]} d5 {[%emt 0:00:00]} 2. g3 {[%emt 0:00:00]} c6 {[%emt 0:
00:00]} 3. Bg2 {[%emt 0:00:00]} Bg4 {[%emt 0:00:21]} 4. O-O {[%emt 0:00:14]} e6
{[%emt 0:00:26]} 5. d4 {[%emt 0:00:55]} Bd6 {[%emt 0:01:25]} 6. Nbd2 {[%emt 0:
00:14]} Nd7 {[%emt 0:01:53]} 7. e4 {[%emt 0:01:30]} Ne7 {[%emt 0:00:49]} 8. c3
{[%emt 0:01:18]} O-O {[%emt 0:00:39]} 9. h3 {[%emt 0:02:11]} Bh5 {[%emt 0:00:
22]} 10. Qb3 {[%emt 0:08:24]} a5 {[%emt 0:10:16]} 11. c4 {[%emt 0:03:31]} a4 {
[%emt 0:19:21]} 12. Qe3 {[%emt 0:03:37]} Re8 {[%emt 0:03:37]} 13. cxd5 {[%emt
0:07:06]} cxd5 {[%emt 0:05:50]} 14. e5 {[%emt 0:03:03]} Bb4 {[%emt 0:00:16]}
15. Nh4 {[%emt 0:06:47]} Nc6 {[%emt 0:03:27]} 16. a3 {[%emt 0:03:44]} Be7 {
[%emt 0:03:51]} 17. Ndf3 {[%emt 0:09:17]} Na5 {[%emt 0:03:55]} 18. g4 {[%emt 0:
04:05]} Bg6 {[%emt 0:07:42]} 19. Nxg6 {[%emt 0:00:44]} fxg6 {[%emt 0:00:08]}
20. Rb1 {[%emt 0:08:06]} Nb6 {[%emt 0:02:53]} 21. Bd2 {[%emt 0:02:08]} Nb3 {
[%emt 0:00:40]} 22. Bc3 {[%emt 0:00:51]} Nc4 {[%emt 0:00:35]} 23. Qd3 {[%emt 0:
00:55]} Qb6 {[%emt 0:04:47]} 24. Ne1 {[%emt 0:03:52]} Rf8 {[%emt 0:01:42]} 25.
Nc2 {[%emt 0:03:09]} Rf4 {[%emt 0:06:05]} 26. Ne3 {[%emt 0:04:09]} Nxd4 {[%emt
0:00:59]} 27. Nxd5 {[%emt 0:16:04]} exd5 {[%emt 0:00:22]} 28. Bxd5+ {[%emt 0:
00:05]} Kh8 {[%emt 0:00:08]} 29. Bxc4 {[%emt 0:00:05]} Rd8 {[%emt 0:03:28]} 30.
Bxd4 {[%emt 0:02:26]} Rdxd4 {[%emt 0:00:52]} 31. Qe3 {[%emt 0:00:31]} Rfe4 {
[%emt 0:01:00]} 32. Qf3 {[%emt 0:00:16]} Rxc4 {[%emt 0:00:23]} 33. Qf7 {[%emt
0:00:06]} Qc6 {[%emt 0:06:14]} 34. Rfd1 {[%emt 0:03:01]} Rxg4+ {[%emt 0:00:46]}
35. hxg4 {[%emt 0:00:09]} Rxg4+ {[%emt 0:00:06]} 36. Kf1 {[%emt 0:00:05]} Qb5+
{[%emt 0:00:29]} 37. Ke1 {[%emt 0:00:47]} Re4+ {[%emt 0:00:15]} 38. Kd2 {[%emt
0:00:09]} Re2+ {[%emt 0:00:19]} 39. Kc3 {[%emt 0:00:29]} Qc5+ {[%emt 0:00:14]}
40. Qc4 {[%emt 0:01:16]} Rc2+ {[%emt 0:00:08]} 0-1

[Event "SPICE Cup 2014"]
[Site "St. Louis"]
[Date "2014.10.21"]
[Round "1"]
[White "Durabalyi, Vasif"]
[Black "Young, Angelo"]
[Result "1-0"]
[ECO "B00"]
[WhiteElo "2624"]
[BlackElo "2315"]
[PlyCount "89"]
[EventDate "2014.??.??"]
[EventCountry "USA"]
[TimeControl "5400+30"]
[WhiteClock "1:07:31"]
[BlackClock "0:01:13"]

1. e4 {[%emt 0:00:06]} d6 {[%emt 0:01:42]} 2. d4 {[%emt 0:00:15]} c6 {[%emt 0:
00:12]} 3. Nc3 {[%emt 0:02:42]} b5 {[%emt 0:10:19]} 4. Nf3 {[%emt 0:00:16]} Bg4
{[%emt 0:06:54]} 5. h3 {[%emt 0:00:34]} Bxf3 {[%emt 0:01:18]} 6. Qxf3 {[%emt 0:
00:07]} b4 {[%emt 0:06:05]} 7. Ne2 {[%emt 0:01:07]} e6 {[%emt 0:01:33]} 8. d5 {
[%emt 0:01:42]} cxd5 {[%emt 0:09:49]} 9. exd5 {[%emt 0:00:19]} e5 {[%emt 0:00:
14]} 10. Ng3 {[%emt 0:00:04]} Qa5 {[%emt 0:07:14]} 11. Bd2 {[%emt 0:00:10]} Nf6
{[%emt 0:01:34]} 12. a3 {[%emt 0:02:48]} Nbd7 {[%emt 0:02:49]} 13. Bxb4 {[%emt
0:02:49]} Qxd5 {[%emt 0:03:51]} 14. Nf5 {[%emt 0:02:32]} Qxf3 {[%emt 0:08:55]}
15. gxf3 {[%emt 0:00:14]} d5 {[%emt 0:01:55]} 16. Nd6+ {[%emt 0:00:04]} Bxd6 {
[%emt 0:04:56]} 17. Bxd6 {[%emt 0:00:09]} Rc8 {[%emt 0:04:52]} 18. O-O-O {
[%emt 0:00:30]} Rc6 {[%emt 0:00:49]} 19. Bb4 {[%emt 0:00:06]} a6 {[%emt 0:02:
11]} 20. Rg1 {[%emt 0:04:24]} g6 {[%emt 0:03:13]} 21. f4 {[%emt 0:00:28]} exf4
{[%emt 0:11:26]} 22. Bg2 {[%emt 0:01:14]} Kd8 {[%emt 0:05:28]} 23. Bxd5 {[%emt
0:01:04]} Nxd5 {[%emt 0:00:21]} 24. Rxd5 {[%emt 0:00:11]} Kc8 {[%emt 0:00:05]}
25. Re1 {[%emt 0:03:49]} f5 {[%emt 0:02:12]} 26. Rd4 {[%emt 0:01:17]} Nf6 {
[%emt 0:01:34]} 27. Rxf4 {[%emt 0:01:41]} Rd8 {[%emt 0:00:49]} 28. f3 {[%emt 0:
04:28]} Rd7 {[%emt 0:00:32]} 29. Bc3 {[%emt 0:00:42]} Nd5 {[%emt 0:00:47]} 30.
Re8+ {[%emt 0:00:07]} Kc7 {[%emt 0:00:22]} 31. Ba5+ {[%emt 0:00:11]} Kb7 {
[%emt 0:00:17]} 32. Rd4 {[%emt 0:00:12]} Rcd6 {[%emt 0:00:41]} 33. b3 {[%emt 0:
01:15]} g5 {[%emt 0:00:35]} 34. Re5 {[%emt 0:00:36]} f4 {[%emt 0:00:49]} 35.
Rxg5 {[%emt 0:00:15]} Ne3 {[%emt 0:00:29]} 36. Rxd6 Rxd6 37. Rg7+ {[%emt 0:00:
46]} Kc6 {[%emt 0:00:09]} 38. Rf7 {[%emt 0:04:14]} Rd1+ {[%emt 0:00:15]} 39.
Kb2 {[%emt 0:00:02]} Kb5 {[%emt 0:01:29]} 40. Bb4 {[%emt 0:00:31]} a5 {[%emt 0:
00:08]} 41. c4+ {[%emt 0:00:16]} Ka6 {[%emt 0:00:21]} 42. Bc5 {[%emt 0:00:30]}
Rd2+ {[%emt 0:01:02]} 43. Kc3 {[%emt 0:00:03]} Rc2+ {[%emt 0:00:27]} 44. Kd3 {
[%emt 0:00:05]} Rb2 {[%emt 0:00:04]} 45. Ra7# {[%emt 0:00:04]} 1-0

[Event "SPICE Cup 2014"]
[Site "St. Louis"]
[Date "2014.10.21"]
[Round "1"]
[White "Le, Quang Liem"]
[Black "Kaufman, Raymond"]
[Result "1-0"]
[ECO "E36"]
[WhiteElo "2706"]
[BlackElo "2341"]
[PlyCount "61"]
[EventDate "2014.??.??"]
[EventCountry "USA"]
[TimeControl "5400+30"]
[WhiteClock "0:20:50"]
[BlackClock "0:04:49"]

1. d4 {[%emt 0:00:00]} e6 {[%emt 0:01:32]} 2. c4 {[%emt 0:00:00]} Nf6 {[%emt 0:
00:18]} 3. Nc3 {[%emt 0:00:00]} Bb4 {[%emt 0:00:10]} 4. Qc2 {[%emt 0:00:09]} d5
{[%emt 0:02:44]} 5. a3 {[%emt 0:01:14]} Bxc3+ {[%emt 0:00:14]} 6. Qxc3 {[%emt
0:00:08]} O-O {[%emt 0:01:14]} 7. e3 {[%emt 0:00:55]} b6 {[%emt 0:05:07]} 8.
cxd5 {[%emt 0:00:49]} Nxd5 {[%emt 0:02:41]} 9. Qc2 {[%emt 0:02:16]} Bb7 {[%emt
0:00:23]} 10. Nf3 {[%emt 0:07:29]} Nd7 {[%emt 0:02:48]} 11. Bd3 {[%emt 0:03:48]
} h6 {[%emt 0:03:04]} 12. e4 {[%emt 0:04:10]} Ne7 {[%emt 0:05:39]} 13. Be3 {
[%emt 0:01:22]} c5 {[%emt 0:09:23]} 14. Rd1 {[%emt 0:08:35]} Rc8 {[%emt 0:03:
32]} 15. Qe2 {[%emt 0:01:40]} Qc7 {[%emt 0:03:54]} 16. O-O {[%emt 0:01:59]} Ng6
{[%emt 0:07:19]} 17. Bb1 {[%emt 0:06:14]} cxd4 {[%emt 0:08:29]} 18. Nxd4 {
[%emt 0:02:06]} Nc5 {[%emt 0:01:40]} 19. Qg4 {[%emt 0:14:27]} Ba6 {[%emt 0:06:
30]} 20. Rfe1 {[%emt 0:01:28]} Ne5 {[%emt 0:02:11]} 21. Qg3 {[%emt 0:06:48]}
Ned3 {[%emt 0:00:59]} 22. Qxc7 {[%emt 0:02:08]} Rxc7 {[%emt 0:00:07]} 23. Re2 {
[%emt 0:00:08]} Ne5 {[%emt 0:09:48]} 24. Rc2 {[%emt 0:00:43]} Rd7 {[%emt 0:01:
04]} 25. b4 {[%emt 0:09:02]} Nxe4 {[%emt 0:05:34]} 26. Rcc1 {[%emt 0:00:11]}
Nf6 {[%emt 0:01:34]} 27. Bf4 {[%emt 0:00:35]} Nc4 {[%emt 0:04:19]} 28. b5 {
[%emt 0:04:18]} Nxa3 {[%emt 0:00:06]} 29. bxa6 {[%emt 0:00:14]} Nxb1 {[%emt 0:
00:12]} 30. Nb5 {[%emt 0:01:29]} Nd5 {[%emt 0:07:36]} 31. Rxb1 {[%emt 0:00:15]}
1-0

[Event "SPICE Cup 2014"]
[Site "St. Louis"]
[Date "2014.10.21"]
[Round "1"]
[White "Naroditsky, Daniel"]
[Black "Kavutskiy, Kostya"]
[Result "1-0"]
[ECO "C78"]
[WhiteElo "2601"]
[BlackElo "2307"]
[PlyCount "71"]
[EventDate "2014.??.??"]
[EventCountry "USA"]
[TimeControl "5400+30"]
[WhiteClock "0:16:45"]
[BlackClock "0:17:56"]

1. e4 {[%emt 0:00:00]} e5 {[%emt 0:00:00]} 2. Nf3 {[%emt 0:00:00]} Nc6 {[%emt
0:00:00]} 3. Bb5 {[%emt 0:00:00]} a6 {[%emt 0:00:00]} 4. Ba4 {[%emt 0:00:00]}
Nf6 {[%emt 0:00:00]} 5. O-O {[%emt 0:00:05]} b5 {[%emt 0:00:00]} 6. Bb3 {[%emt
0:00:02]} Bc5 {[%emt 0:00:01]} 7. c3 {[%emt 0:03:26]} d6 {[%emt 0:00:05]} 8. d4
{[%emt 0:01:55]} Bb6 {[%emt 0:00:06]} 9. Be3 {[%emt 0:05:30]} O-O {[%emt 0:03:
21]} 10. Nbd2 {[%emt 0:01:58]} Bb7 {[%emt 0:01:22]} 11. d5 {[%emt 0:04:12]} Ne7
{[%emt 0:00:47]} 12. Bxb6 {[%emt 0:00:08]} cxb6 {[%emt 0:00:05]} 13. Ne1 {
[%emt 0:09:44]} Ng6 {[%emt 0:05:51]} 14. Nd3 {[%emt 0:02:38]} Bc8 {[%emt 0:01:
32]} 15. a4 {[%emt 0:02:28]} bxa4 {[%emt 0:00:50]} 16. Bxa4 {[%emt 0:00:06]} a5
{[%emt 0:08:58]} 17. Bc6 {[%emt 0:07:16]} Ra7 {[%emt 0:04:20]} 18. b4 {[%emt 0:
01:30]} Bd7 {[%emt 0:12:24]} 19. c4 {[%emt 0:02:19]} Qc7 {[%emt 0:03:16]} 20.
b5 {[%emt 0:09:50]} Bc8 {[%emt 0:04:01]} 21. c5 {[%emt 0:06:39]} dxc5 {[%emt 0:
00:53]} 22. Re1 {[%emt 0:00:54]} Ne8 {[%emt 0:04:12]} 23. Qb3 {[%emt 0:09:31]}
Qd8 {[%emt 0:06:27]} 24. Nc4 {[%emt 0:09:17]} Nd6 {[%emt 0:14:06]} 25. Ndxe5 {
[%emt 0:00:56]} Nxe5 {[%emt 0:00:10]} 26. Nxe5 {[%emt 0:00:02]} Re7 {[%emt 0:
03:01]} 27. f4 {[%emt 0:00:24]} f5 {[%emt 0:01:26]} 28. exf5 {[%emt 0:00:02]}
Rxf5 {[%emt 0:01:20]} 29. g3 {[%emt 0:01:33]} Kh8 {[%emt 0:01:51]} 30. Re2 {
[%emt 0:01:58]} Rf8 {[%emt 0:01:55]} 31. Rae1 {[%emt 0:00:47]} Nf5 {[%emt 0:00:
16]} 32. g4 {[%emt 0:01:40]} Nh4 {[%emt 0:04:26]} 33. Qg3 {[%emt 0:01:13]} g5 {
[%emt 0:01:56]} 34. fxg5 {[%emt 0:02:12]} Rxe5 {[%emt 0:00:30]} 35. Qxe5+ {
[%emt 0:00:10]} Kg8 {[%emt 0:00:06]} 36. d6 {[%emt 0:00:50]} 1-0

[Event "SPICE Cup 2014"]
[Site "St. Louis"]
[Date "2014.10.21"]
[Round "1"]
[White "Vibbert, Sean"]
[Black "Corrales Jimenez, Fidel"]
[Result "0-1"]
[ECO "B06"]
[WhiteElo "2302"]
[BlackElo "2532"]
[PlyCount "62"]
[EventDate "2014.??.??"]
[EventCountry "USA"]
[TimeControl "5400+30"]
[WhiteClock "0:00:51"]
[BlackClock "0:59:17"]

1. e4 {[%emt 0:00:00]} g6 {[%emt 0:00:00]} 2. Nc3 {[%emt 0:01:12]} Bg7 {[%emt
0:00:08]} 3. Nge2 {[%emt 0:00:24]} a6 {[%emt 0:01:41]} 4. g3 {[%emt 0:02:51]}
b5 {[%emt 0:00:48]} 5. Bg2 {[%emt 0:01:26]} Bb7 {[%emt 0:01:37]} 6. O-O {[%emt
0:02:53]} c5 {[%emt 0:02:16]} 7. d3 {[%emt 0:10:56]} b4 {[%emt 0:02:19]} 8. Nd5
{[%emt 0:02:42]} e6 {[%emt 0:06:39]} 9. Ne3 {[%emt 0:00:10]} Ne7 {[%emt 0:00:
12]} 10. a3 {[%emt 0:01:18]} a5 {[%emt 0:01:05]} 11. axb4 {[%emt 0:16:11]} axb4
{[%emt 0:01:58]} 12. Rxa8 {[%emt 0:00:07]} Bxa8 {[%emt 0:00:04]} 13. c3 {[%emt
0:04:57]} O-O {[%emt 0:01:47]} 14. cxb4 {[%emt 0:18:57]} cxb4 {[%emt 0:00:12]}
15. Qa4 {[%emt 0:01:40]} Nbc6 {[%emt 0:00:29]} 16. Nc2 {[%emt 0:01:21]} Qb8 {
[%emt 0:01:30]} 17. Bd2 {[%emt 0:04:25]} Bxb2 {[%emt 0:07:27]} 18. Nxb4 {[%emt
0:05:47]} Bg7 {[%emt 0:01:21]} 19. Rb1 {[%emt 0:12:11]} Rc8 {[%emt 0:00:49]}
20. Rb3 {[%emt 0:04:02]} Qc7 {[%emt 0:04:42]} 21. Nxc6 {[%emt 0:01:32]} Nxc6 {
[%emt 0:00:12]} 22. Bc3 {[%emt 0:02:03]} Ne5 {[%emt 0:01:08]} 23. Qa1 {[%emt 0:
01:20]} Bc6 {[%emt 0:02:19]} 24. f4 {[%emt 0:01:52]} Ra8 {[%emt 0:00:32]} 25.
Ra3 {[%emt 0:01:40]} Rxa3 {[%emt 0:01:12]} 26. Qxa3 {[%emt 0:00:01]} Qb6+ {
[%emt 0:00:10]} 27. Bd4 {[%emt 0:01:00]} Qb1+ {[%emt 0:00:40]} 28. Qc1 {[%emt
0:00:31]} Qxd3 {[%emt 0:00:24]} 29. Qc3 {[%emt 0:00:30]} Qd1+ {[%emt 0:02:04]}
30. Kf2 {[%emt 0:00:30]} Ng4+ {[%emt 0:00:09]} 31. Kf3 {[%emt 0:00:10]} Bxe4+ {
[%emt 0:00:19]} 0-1

[Event "SPICE Cup 2014"]
[Site "St. Louis"]
[Date "2014.10.22"]
[Round "2"]
[White "Banawa, Joel Cholo B"]
[Black "Troff, Kayden W"]
[Result "1/2-1/2"]
[ECO "A48"]
[WhiteElo "2350"]
[BlackElo "2532"]
[PlyCount "67"]
[EventDate "2014.??.??"]
[EventCountry "USA"]
[TimeControl "5400+30"]

1. d4 Nf6 2. Nf3 g6 3. Bf4 Bg7 4. e3 O-O 5. Be2 d6 6. h3 c5 7. c3 cxd4 8. exd4
Nc6 9. O-O Re8 10. Na3 a6 11. Nc2 Qb6 12. Qc1 e5 13. dxe5 dxe5 14. Be3 Qc7 15.
Rd1 Bf5 16. Bg5 h6 17. Bxf6 Bxf6 18. Ne3 Be6 19. Nd2 Bg7 20. Bc4 Bxc4 21. Ndxc4
Ne7 22. Qc2 b5 23. Nd2 f5 24. a4 Kh7 25. Nf3 Rad8 26. axb5 axb5 27. Qb3 f4 28.
Ng4 Nc6 29. Rxd8 Rxd8 30. Re1 b4 31. Qc4 bxc3 32. bxc3 Qd6 33. Qe4 Qd5 34. Qe2
1/2-1/2

[Event "SPICE Cup 2014"]
[Site "St. Louis"]
[Date "2014.10.22"]
[Round "2"]
[White "Kjartansson, Gudmundur"]
[Black "Le, Quang Liem"]
[Result "1/2-1/2"]
[ECO "E17"]
[WhiteElo "2439"]
[BlackElo "2706"]
[PlyCount "86"]
[EventDate "2014.??.??"]
[EventCountry "USA"]
[TimeControl "5400+30"]
[WhiteClock "0:13:00"]
[BlackClock "0:21:49"]

1. d4 {[%emt 0:00:00]} Nf6 {[%emt 0:00:00]} 2. c4 {[%emt 0:00:00]} e6 {[%emt 0:
00:01]} 3. Nf3 {[%emt 0:00:13]} b6 {[%emt 0:00:47]} 4. g3 {[%emt 0:01:21]} Bb7
{[%emt 0:00:12]} 5. Bg2 {[%emt 0:00:05]} Be7 {[%emt 0:00:12]} 6. O-O {[%emt 0:
00:06]} O-O {[%emt 0:00:08]} 7. Re1 {[%emt 0:00:38]} c5 {[%emt 0:00:18]} 8. d5
{[%emt 0:00:14]} exd5 {[%emt 0:00:08]} 9. Nh4 {[%emt 0:00:06]} Ne4 {[%emt 0:00:
13]} 10. cxd5 {[%emt 0:00:22]} Bxh4 {[%emt 0:00:07]} 11. Bxe4 {[%emt 0:00:06]}
Bf6 {[%emt 0:00:08]} 12. Qc2 {[%emt 0:00:54]} h6 {[%emt 0:00:10]} 13. Bf4 {
[%emt 0:01:36]} d6 {[%emt 0:00:14]} 14. Nd2 {[%emt 0:03:41]} Qe7 {[%emt 0:00:
25]} 15. Nc4 {[%emt 0:01:40]} Rd8 {[%emt 0:00:10]} 16. Rad1 {[%emt 0:02:04]}
Na6 {[%emt 0:03:22]} 17. Bg2 {[%emt 0:08:25]} Nb4 {[%emt 0:15:14]} 18. Qb3 {
[%emt 0:15:06]} b5 {[%emt 0:01:26]} 19. Na5 {[%emt 0:01:34]} Qc7 {[%emt 0:00:
10]} 20. Nxb7 {[%emt 0:00:53]} Qxb7 {[%emt 0:00:03]} 21. a3 {[%emt 0:03:31]}
Na6 {[%emt 0:00:10]} 22. e4 {[%emt 0:01:20]} c4 {[%emt 0:04:50]} 23. Qc2 {
[%emt 0:01:27]} Rac8 {[%emt 0:08:26]} 24. b4 {[%emt 0:10:36]} cxb3 {[%emt 0:01:
44]} 25. Qxb3 {[%emt 0:00:06]} Nc5 {[%emt 0:07:52]} 26. Qe3 {[%emt 0:05:10]}
Qb6 {[%emt 0:14:21]} 27. e5 {[%emt 0:04:19]} dxe5 {[%emt 0:00:33]} 28. Bxe5 {
[%emt 0:00:07]} Bxe5 {[%emt 0:02:30]} 29. Qxe5 {[%emt 0:00:05]} Nb7 {[%emt 0:
00:11]} 30. Rc1 {[%emt 0:03:52]} Rc4 {[%emt 0:08:03]} 31. Bf1 {[%emt 0:02:02]}
Rc5 {[%emt 0:01:52]} 32. Rxc5 {[%emt 0:00:54]} Nxc5 {[%emt 0:00:13]} 33. d6 {
[%emt 0:06:49]} Nd7 {[%emt 0:05:57]} 34. Qxb5 {[%emt 0:03:03]} Qxd6 {[%emt 0:
00:09]} 35. Qa5 {[%emt 0:03:13]} Qb6 {[%emt 0:06:07]} 36. Qxb6 {[%emt 0:00:47]}
axb6 {[%emt 0:00:43]} 37. Rd1 {[%emt 0:04:20]} Kf8 {[%emt 0:00:15]} 38. Bb5 {
[%emt 0:02:55]} Ke7 {[%emt 0:00:09]} 39. Re1+ {[%emt 0:03:53]} Kd6 {[%emt 0:00:
46]} 40. Rd1+ {[%emt 0:00:15]} Kc7 {[%emt 0:00:00]} 41. Re1 {[%emt 0:00:33]}
Kd6 {[%emt 0:00:21]} 42. Rd1+ {[%emt 0:00:03]} Kc7 {[%emt 0:00:52]} 43. Re1 {
[%emt 0:00:06]} Kd6 {[%emt 0:00:09]} 1/2-1/2

[Event "SPICE Cup 2014"]
[Site "St. Louis"]
[Date "2014.10.22"]
[Round "2"]
[White "Preotu, Razvan"]
[Black "Naroditsky, Daniel"]
[Result "1-0"]
[ECO "C44"]
[WhiteElo "2405"]
[BlackElo "2601"]
[PlyCount "113"]
[EventDate "2014.??.??"]
[EventCountry "USA"]
[TimeControl "5400+30"]
[WhiteClock "0:09:16"]
[BlackClock "0:16:56"]

1. e4 {[%emt 0:00:00]} e5 {[%emt 0:00:00]} 2. Nf3 {[%emt 0:00:00]} Nc6 {[%emt
0:00:00]} 3. d4 {[%emt 0:01:01]} exd4 {[%emt 0:00:16]} 4. Nxd4 {[%emt 0:00:24]}
Nf6 {[%emt 0:01:39]} 5. Nc3 {[%emt 0:03:16]} Bb4 {[%emt 0:03:05]} 6. Nxc6 {
[%emt 0:00:44]} bxc6 {[%emt 0:00:10]} 7. Bd3 {[%emt 0:00:18]} d5 {[%emt 0:02:
44]} 8. exd5 {[%emt 0:00:50]} cxd5 {[%emt 0:00:17]} 9. O-O {[%emt 0:00:43]} O-O
{[%emt 0:00:06]} 10. h3 {[%emt 0:03:34]} c6 {[%emt 0:06:30]} 11. Qf3 {[%emt 0:
02:45]} Bd6 {[%emt 0:06:56]} 12. Bf4 {[%emt 0:01:37]} Rb8 {[%emt 0:04:23]} 13.
b3 {[%emt 0:00:40]} Rb4 {[%emt 0:03:32]} 14. Bxd6 {[%emt 0:06:06]} Qxd6 {[%emt
0:00:20]} 15. Qg3 {[%emt 0:02:00]} Qxg3 {[%emt 0:09:50]} 16. fxg3 {[%emt 0:00:
09]} Be6 {[%emt 0:00:14]} 17. Na4 {[%emt 0:11:58]} Nd7 {[%emt 0:01:39]} 18.
Rac1 {[%emt 0:22:02]} Rc8 {[%emt 0:06:05]} 19. c3 {[%emt 0:04:22]} Rbb8 {[%emt
0:00:25]} 20. Ba6 {[%emt 0:02:09]} Rd8 {[%emt 0:04:18]} 21. c4 {[%emt 0:02:29]}
dxc4 {[%emt 0:08:24]} 22. Bxc4 {[%emt 0:00:17]} Bxc4 {[%emt 0:00:04]} 23. Rxc4
{[%emt 0:00:14]} Ne5 {[%emt 0:00:06]} 24. Rc3 {[%emt 0:06:11]} Rd2 {[%emt 0:01:
53]} 25. Rf2 {[%emt 0:00:18]} Rbd8 {[%emt 0:00:44]} 26. Rxd2 {[%emt 0:02:37]}
Rxd2 {[%emt 0:00:02]} 27. a3 {[%emt 0:00:25]} f6 {[%emt 0:02:13]} 28. Nc5 {
[%emt 0:00:53]} Kf7 {[%emt 0:00:58]} 29. Ne4 {[%emt 0:03:18]} Ra2 {[%emt 0:02:
13]} 30. Nd6+ {[%emt 0:01:05]} Ke6 {[%emt 0:03:34]} 31. Nc4 {[%emt 0:00:58]}
Nxc4 {[%emt 0:06:40]} 32. Rxc4 {[%emt 0:02:25]} Rxa3 {[%emt 0:00:08]} 33. Rxc6+
{[%emt 0:00:12]} Kd7 {[%emt 0:00:03]} 34. Rc3 {[%emt 0:00:17]} a5 {[%emt 0:00:
22]} 35. Rc5 {[%emt 0:03:48]} Kd6 {[%emt 0:03:09]} 36. Rb5 {[%emt 0:00:31]} Kc6
{[%emt 0:01:00]} 37. Rb8 {[%emt 0:00:12]} h5 {[%emt 0:01:45]} 38. Kh2 {[%emt 0:
03:56]} Ra1 {[%emt 0:04:00]} 39. Rh8 {[%emt 0:02:28]} Rb1 {[%emt 0:00:59]} 40.
Rxh5 {[%emt 0:00:39]} Kb6 {[%emt 0:00:01]} 41. Rh8 {[%emt 0:01:06]} Kb7 {[%emt
0:01:19]} 42. Rh7 {[%emt 0:00:43]} Rxb3 {[%emt 0:00:05]} 43. Rxg7+ {[%emt 0:00:
06]} Ka6 {[%emt 0:00:19]} 44. Rg8 {[%emt 0:01:05]} Kb7 {[%emt 0:01:13]} 45. h4
{[%emt 0:00:57]} Rb5 {[%emt 0:02:48]} 46. Rg7+ {[%emt 0:01:13]} Ka6 {[%emt 0:
00:13]} 47. Rg6 {[%emt 0:00:28]} Rb6 {[%emt 0:01:44]} 48. h5 {[%emt 0:00:29]}
Kb5 {[%emt 0:01:00]} 49. h6 {[%emt 0:00:31]} Rb8 {[%emt 0:00:01]} 50. Rxf6 {
[%emt 0:00:51]} a4 {[%emt 0:00:00]} 51. g4 {[%emt 0:00:46]} a3 {[%emt 0:00:04]}
52. g5 {[%emt 0:00:45]} a2 {[%emt 0:00:05]} 53. Rf1 {[%emt 0:00:06]} Kc4 {
[%emt 0:00:54]} 54. Ra1 {[%emt 0:00:59]} Kb3 {[%emt 0:00:05]} 55. g6 {[%emt 0:
00:55]} Kb2 {[%emt 0:00:26]} 56. Rxa2+ {[%emt 0:00:08]} Kxa2 {[%emt 0:00:01]}
57. g7 {[%emt 0:00:15]} 1-0

[Event "SPICE Cup 2014"]
[Site "St. Louis"]
[Date "2014.10.22"]
[Round "2"]
[White "Robson, Ray"]
[Black "Recuero Guerra, David"]
[Result "1-0"]
[ECO "C19"]
[WhiteElo "2628"]
[BlackElo "2424"]
[PlyCount "51"]
[EventDate "2014.??.??"]
[EventCountry "USA"]
[TimeControl "5400+30"]
[WhiteClock "0:12:40"]
[BlackClock "0:00:34"]

1. e4 {[%emt 0:00:00]} e6 {[%emt 0:00:00]} 2. d4 {[%emt 0:00:00]} d5 {[%emt 0:
00:03]} 3. Nc3 {[%emt 0:00:10]} Bb4 {[%emt 0:00:40]} 4. e5 {[%emt 0:00:45]} c5
{[%emt 0:00:47]} 5. a3 {[%emt 0:00:25]} Bxc3+ {[%emt 0:00:07]} 6. bxc3 {[%emt
0:00:06]} Ne7 {[%emt 0:00:14]} 7. a4 {[%emt 0:01:59]} Qa5 {[%emt 0:02:50]} 8.
Qd2 {[%emt 0:06:50]} b6 {[%emt 0:02:49]} 9. Bb5+ {[%emt 0:03:09]} Bd7 {[%emt 0:
02:22]} 10. Bd3 {[%emt 0:01:39]} Bc8 {[%emt 0:16:22]} 11. Ba3 {[%emt 0:16:10]}
Qxa4 {[%emt 0:07:20]} 12. Qg5 {[%emt 0:03:21]} Ng6 {[%emt 0:18:58]} 13. h4 {
[%emt 0:06:18]} h6 {[%emt 0:00:36]} 14. Qg3 {[%emt 0:02:44]} O-O {[%emt 0:01:
28]} 15. Nf3 {[%emt 0:04:06]} Qc6 {[%emt 0:23:04]} 16. dxc5 {[%emt 0:06:53]}
bxc5 {[%emt 0:01:29]} 17. Bc1 {[%emt 0:01:47]} Kh8 {[%emt 0:05:20]} 18. h5 {
[%emt 0:06:36]} Ne7 {[%emt 0:00:39]} 19. Qh4 {[%emt 0:00:29]} Ng8 {[%emt 0:01:
50]} 20. g4 {[%emt 0:04:16]} d4 {[%emt 0:08:38]} 21. g5 {[%emt 0:19:32]} Qxf3 {
[%emt 0:00:53]} 22. gxh6 {[%emt 0:00:20]} gxh6 {[%emt 0:01:39]} 23. Rg1 {[%emt
0:01:01]} Bb7 {[%emt 0:00:45]} 24. Bxh6 {[%emt 0:01:22]} Nxh6 {[%emt 0:01:49]}
25. Qg5 {[%emt 0:00:09]} Nf5 {[%emt 0:01:14]} 26. Qf6+ {[%emt 0:00:13]} 1-0

[Event "SPICE Cup 2014"]
[Site "St. Louis"]
[Date "2014.10.22"]
[Round "2"]
[White "Sanches, Ruiz"]
[Black "Durabalyi, Vasif"]
[Result "1/2-1/2"]
[ECO "C70"]
[WhiteElo "2429"]
[BlackElo "2624"]
[PlyCount "86"]
[EventDate "2014.??.??"]
[EventCountry "USA"]
[TimeControl "5400+30"]
[WhiteClock "0:38:20"]
[BlackClock "1:01:58"]

1. e4 {[%emt 0:00:00]} e5 {[%emt 0:00:00]} 2. Nf3 {[%emt 0:00:00]} Nc6 {[%emt
0:00:00]} 3. Bb5 {[%emt 0:00:07]} a6 {[%emt 0:00:00]} 4. Ba4 {[%emt 0:00:22]}
Nge7 {[%emt 0:00:00]} 5. c3 {[%emt 0:01:37]} g6 {[%emt 0:00:02]} 6. d4 {[%emt
0:00:42]} exd4 {[%emt 0:00:06]} 7. cxd4 {[%emt 0:00:18]} b5 {[%emt 0:00:04]} 8.
Bc2 {[%emt 0:01:05]} d5 {[%emt 0:00:06]} 9. exd5 {[%emt 0:00:21]} Nxd5 {[%emt
0:00:07]} 10. O-O {[%emt 0:00:23]} Be6 {[%emt 0:00:05]} 11. Nc3 {[%emt 0:00:30]
} Bg7 {[%emt 0:00:07]} 12. Nxd5 {[%emt 0:00:07]} Qxd5 {[%emt 0:00:19]} 13. Bb3
{[%emt 0:00:06]} Qf5 {[%emt 0:00:54]} 14. Be3 {[%emt 0:00:06]} Bxb3 {[%emt 0:
04:07]} 15. Qxb3 {[%emt 0:02:04]} O-O {[%emt 0:00:14]} 16. Rac1 {[%emt 0:00:38]
} Na5 {[%emt 0:04:18]} 17. Qc2 {[%emt 0:00:01]} Nc4 {[%emt 0:04:26]} 18. Qxf5 {
[%emt 0:07:48]} gxf5 {[%emt 0:00:02]} 19. b3 {[%emt 0:08:46]} Nxe3 {[%emt 0:03:
24]} 20. fxe3 {[%emt 0:00:07]} Rfe8 {[%emt 0:00:22]} 21. Nh4 {[%emt 0:04:10]}
f4 {[%emt 0:08:14]} 22. Rxf4 {[%emt 0:01:03]} Bh6 {[%emt 0:00:06]} 23. Rg4+ {
[%emt 0:01:15]} Kf8 {[%emt 0:00:06]} 24. Nf5 {[%emt 0:00:35]} Bxe3+ {[%emt 0:
00:06]} 25. Nxe3 {[%emt 0:00:07]} Rxe3 {[%emt 0:00:05]} 26. Rxc7 {[%emt 0:01:
32]} Rae8 {[%emt 0:04:21]} 27. Rf4 {[%emt 0:02:06]} Re1+ {[%emt 0:00:47]} 28.
Rf1 {[%emt 0:07:18]} Rxf1+ {[%emt 0:00:05]} 29. Kxf1 {[%emt 0:00:06]} Rd8 {
[%emt 0:00:03]} 30. Ra7 {[%emt 0:00:56]} Rxd4 {[%emt 0:01:13]} 31. Rxa6 {[%emt
0:00:03]} Rd2 {[%emt 0:00:05]} 32. Rb6 {[%emt 0:00:59]} Rxa2 {[%emt 0:00:09]}
33. Rxb5 {[%emt 0:00:05]} Rb2 {[%emt 0:00:06]} 34. Kg1 {[%emt 0:02:33]} h6 {
[%emt 0:01:15]} 35. Rb4 {[%emt 0:02:57]} h5 {[%emt 0:00:47]} 36. h4 {[%emt 0:
01:01]} Kg7 {[%emt 0:00:12]} 37. Kh2 {[%emt 0:00:50]} Kg6 {[%emt 0:00:14]} 38.
Rb8 {[%emt 0:02:31]} f6 {[%emt 0:04:37]} 39. b4 {[%emt 0:10:40]} Kf5 {[%emt 0:
03:58]} 40. b5 {[%emt 0:00:44]} Rb4 {[%emt 0:01:41]} 41. Kh3 {[%emt 0:03:45]}
Rb3+ {[%emt 0:01:59]} 42. g3 {[%emt 0:02:26]} Rb2 {[%emt 0:00:10]} 43. b6 {
[%emt 0:00:20]} Ke5 1/2-1/2